lending/lending_fUSD_20240111
["ID","MTS","AMOUNT","RATE_DAILY","PERIOD"]
[311190769,1704976306498,-500.0,0.00040547,4]
[311190770,1704976306507,-500.0,0.00040547,4]
[311190771,1704976306517,-500.0,0.00040547,4]
[311190772,1704976306527,-500.0,0.00040547,4]
[311190773,1704976306537,-221.54,0.00040547,4]
[311190774,1704976306546,-500.0,0.00040547,4]
[311190775,1704976306555,-500.0,0.00040547,4]
[311190776,1704976306565,-2412.68,0.00040547,4]
[311190777,1704976306574,-500.0,0.00040547,4]
[311190778,1704976306583,-7643.38,0.00040547,4]
[311190779,1704976306593,-241.460575,0.00040547,7]
[311190780,1704976306602,-241.460575,0.00040547,7]
[311190781,1704976306611,-1790.03588572,0.00040555,5]
[311190782,1704976306620,-150.0,0.00040586,2]
[311190783,1704976306630,-5869.69631105,0.0004059,14]
[311190784,1704976306639,-1576.93544616,0.0004059,9]
[311190785,1704976306649,-17185.0,0.0004059,3]
[311190786,1704976306658,-221.9008964,0.0004059,32]
[311190787,1704976306667,-4820.58202475,0.0004059,2]
[311190788,1704976306678,-665.7765632,0.0004059,2]
[311190789,1704976306687,-1637.8204338,0.0004059,2]
[311190790,1704976306697,-150.23893773,0.00040596,8]
[311190791,1704976306706,-1941.0,0.000406,7]
[311190792,1704976306718,-150.0,0.00040618,2]
[311190793,1704976306728,-1250.34,0.00040661,7]
[311190794,1704976306738,-1250.34,0.00040661,7]
[311190795,1704976306747,-150.0,0.00040677,7]
[311190796,1704976306760,-6839.50522379,0.00040684,2]
[311190797,1704976306769,-313.9423255,0.00040687,2]
[311190798,1704976306778,-150.0,0.00040689,3]
[311190799,1704976306788,-150.0,0.00040689,3]
[311190800,1704976306798,-150.0,0.00040689,3]
[311190801,1704976306807,-150.0,0.00040689,3]
[311190802,1704976306816,-150.0,0.00040689,3]
[311190803,1704976306825,-150.0,0.00040689,3]
[311190804,1704976306834,-150.0,0.00040689,3]
[311190805,1704976306844,-150.0,0.00040689,3]
[311190806,1704976306853,-150.0,0.00040689,3]
[311190807,1704976306861,-150.0,0.00040689,3]
[311190808,1704976306871,-15390.59296301,0.00040689,6]
[311190809,1704976306881,-116543.6052712,0.0004069,49]
[311190810,1704976306896,-515019.93179211,0.0004069,49]
[311190811,1704976306911,-702.5190202,0.0004069,49]
[311190812,1704976306922,-3185.11495083,0.0004069,49]
[311190813,1704976307072,-1209.83198086,0.0004069,49]
[311190814,1704976307086,-42026.20862888,0.0004069,49]
[311190815,1704976307099,-8353.82516693,0.0004069,49]
[311190816,1704976307110,-10722.14174204,0.0004069,49]
[311190817,1704976307132,-500.0,0.00039726,4]
[311190818,1704976307142,-5385.64312233,0.0004069,49]
[311190819,1704976307157,-748.73224045,0.0004069,49]
[311190820,1704976307168,-461.64000211,0.0004069,49]
[311190821,1704976307439,-165.5,0.00038764,10]
[311190822,1704976307450,-238.63,0.00038853,4]
[311190823,1704976307460,-46597.37000001,0.00039177,2]
[311190824,1704976307482,-360.34423684,0.00039177,2]
[311190825,1704976307495,-306.67142179,0.00039177,2]
[311190826,1704976308056,-1081.37197055,0.00037968,2]
[311190827,1704976308065,-1288.81,0.00038324,2]
[311190828,1704976308075,-395.27871204,0.00038853,4]
[311190829,1704976308085,-473.27542848,0.00038853,4]
[311190830,1704976308095,-14995.02619793,0.00039177,2]
[311190831,1704976308143,-0.00347227,0.00039177,2]
[311190832,1704976308155,-2499.16971345,0.00039177,2]
[311190833,1704976308432,-14716.30464352,0.00039177,2]
[311190834,1704976308449,-42628.92460695,0.00039177,2]
[311190835,1704976308459,-1226.16017942,0.00039177,2]
[311190836,1704976308468,-500.0,0.0004,4]
[311190837,1704976308479,-411971.42619673,0.0004069,49]
[311190838,1704976308495,-7300.68695563,0.0004069,49]
[311190839,1704976308506,-6176.37203127,0.0004069,49]
[311190840,1704976308518,-8276.55654988,0.0004069,49]
[311190841,1704976308532,-17436.83329014,0.0004069,49]
[311190842,1704976308740,355.19561566,0.00026449,14]
[311190843,1704976308761,1864.46314779,0.00026449,14]
[311190856,1704976501602,350.0,0.00025,3]
[311190861,1704976558607,156.24341445,0.00032,120]
[311190883,1704977153325,-177.6089,0.00026797,2]
[311190884,1704977153345,-1000.0,0.00026798,2]
[311190885,1704977153365,-483.68814411,0.000268,2]
[311190886,1704977153386,-150.0,0.00026999,2]
[311190887,1704977153406,-400.0,0.00027,3]
[311190888,1704977153426,-14801.361548,0.00027,2]
[311190896,1704977225104,-450.0,0.00029,3]
[311190897,1704977225132,-285.75627091,0.00030999,4]
[311190898,1704977225152,-500.0,0.00031,3]
[311190899,1704977225172,-155.0,0.00032,2]
[311190900,1704977225193,-9.19771405,0.00032,2]
[311190903,1704977243095,-1626.21966879,0.00030999,2]
[311190916,1704977353107,-2658.1699,0.000289,14]
[311190921,1704977374107,-155.87539411,0.00030899,2]
[311190922,1704977374128,-400.0,0.00030998,2]
[311190923,1704977374148,-500.0,0.00030999,2]
[311190924,1704977374169,-155.87539404,0.00031423,2]
[311190925,1704977374190,-155.87539404,0.00031946,2]
[311190929,1704977393056,490.80228595,0.00030999,2]
[311190945,1704977434548,-362.1013399,0.00032368,2]
[311190946,1704977434579,-637.8986601,0.00032368,2]
[311190947,1704977434588,-3516.94335775,0.00032368,4]
[311190948,1704977434598,-238.63,0.00032369,4]
[311190949,1704977434607,-499.99,0.00032371,2]
[311190950,1704977434616,-155.87539404,0.0003247,2]
[311190951,1704977434626,-155.87539404,0.00032993,2]
[311190952,1704977434635,-155.87539404,0.00033517,2]
[311190953,1704977434644,-483.39,0.00033552,2]
[311190954,1704977434654,-555.1432,0.000339,2]
[311190955,1704977434663,-45672.1853886,0.00033996,2]
[311190956,1704977434674,-49518.16230397,0.00033997,4]
[311190957,1704977434684,-456.74,0.00033997,2]
[311190958,1704977434693,-4031.95323893,0.00033998,2]
[311190959,1704977434702,-18768.0,0.00034,3]
[311190960,1704977434712,-1000.0,0.00034,4]
[311190961,1704977434721,-201.6432844,0.00034,2]
[311190962,1704977434731,-155.87539404,0.00034041,2]
[311190963,1704977434740,-647.28,0.00034512,2]
[311190964,1704977434749,-390.477722,0.0003452,2]
[311190965,1704977434758,-155.87539404,0.00034564,2]
[311190966,1704977434768,-162.96,0.00034654,2]
[311190967,1704977434777,-585.716583,0.00034794,2]
[311190968,1704977434786,-780.955444,0.00034931,2]
[311190969,1704977434795,-976.194305,0.00035068,2]
[311190970,1704977434806,-155.87539404,0.00035088,2]
[311190971,1704977434815,-150.0,0.00035092,2]
[311190972,1704977434824,-4405.24,0.00035149,2]
[311190973,1704977435012,-177.31,0.00035242,2]
[311190974,1704977435022,-181.34063593,0.00035258,4]
[311190975,1704977435031,-1366.672028,0.00035342,2]
[311190976,1704977435040,-840.0,0.00035357,2]
[311190977,1704977435051,-2085.5071,0.00035516,2]
[311190978,1704977435060,-229.7444,0.00035516,2]
[311190979,1704977435071,-186.94,0.00035517,2]
[311190980,1704977435080,-226.46,0.00035547,2]
[311190981,1704977435090,-827.52,0.00035607,10]
[311190982,1704977435099,-155.87539404,0.00035611,2]
[311190983,1704977435109,-463.02,0.00035615,15]
[311190984,1704977435118,-151.3,0.00035616,2]
[311190985,1704977435128,-10386.63,0.00035617,2]
[311190986,1704977435137,-289.64,0.00035621,2]
[311190987,1704977435147,-190.55,0.00035624,2]
[311190988,1704977435157,-2000.0,0.00035644,2]
[311190989,1704977435168,-406.17,0.00035649,2]
[311190990,1704977435178,-500.0,0.0003565,2]
[311190991,1704977435187,-925.75,0.00035657,2]
[311190992,1704977435197,-200.0,0.00035671,2]
[311190993,1704977435206,-1036.0,0.00035673,2]
[311190994,1704977435216,-200.0,0.00035686,2]
[311190995,1704977435230,-186.94,0.00035704,2]
[311190996,1704977435239,-14320.33,0.00035713,2]
[311190997,1704977435249,-160.0,0.00035753,2]
[311190998,1704977435259,-483.39,0.00035816,2]
[311190999,1704977435268,-186.94,0.00035891,2]
[311191000,1704977435278,-6278.56899239,0.00035934,10]
[311191001,1704977435287,-1429.64,0.00035941,2]
[311191002,1704977435297,-7312.22175091,0.00035942,10]
[311191003,1704977435307,-26588.38878396,0.00035959,13]
[311191004,1704977435317,-155.59,0.00035973,2]
[311191005,1704977435327,-6265.3833,0.00035981,2]
[311191006,1704977435337,-393.6836,0.00035981,2]
[311191007,1704977435347,-155.80305312,0.00035998,2]
[311191008,1704977435357,-423.61155071,0.00036,2]
[311191009,1704977435366,-201.56,0.00036038,120]
[311191010,1704977435376,-155.59,0.00036071,2]
[311191011,1704977435385,-186.94,0.00036078,2]
[311191012,1704977435394,-155.87539404,0.00036135,2]
[311191013,1704977435404,-155.59,0.0003617,2]
[311191014,1704977435413,-186.94,0.00036264,2]
[311191015,1704977435424,-155.59,0.00036269,2]
[311191016,1704977435433,-155.59,0.00036367,2]
[311191017,1704977435442,-186.94,0.00036451,2]
[311191018,1704977435451,-155.59,0.00036466,2]
[311191019,1704977435460,-155.59,0.00036565,2]
[311191020,1704977435469,-289.64,0.00036599,2]
[311191021,1704977435478,-186.94,0.00036638,2]
[311191022,1704977435487,-155.87539404,0.00036658,2]
[311191023,1704977435496,-155.59,0.00036663,2]
[311191024,1704977435505,-155.59,0.00036762,2]
[311191025,1704977435514,-186.94,0.00036825,2]
[311191026,1704977435524,-155.59,0.00036861,2]
[311191027,1704977435533,-190.55,0.00036942,2]
[311191028,1704977435543,-155.59,0.00036959,2]
[311191029,1704977435552,-186.94,0.00037012,2]
[311191030,1704977435562,-155.59,0.00037058,2]
[311191031,1704977435571,-155.59,0.00037157,2]
[311191032,1704977435581,-155.87539404,0.00037182,2]
[311191033,1704977435591,-186.94,0.00037199,2]
[311191034,1704977435601,-155.59,0.00037255,2]
[311191035,1704977435611,-153.0,0.000373,7]
[311191036,1704977435620,-500.0,0.00037316,120]
[311191037,1704977435630,-171.1311481,0.00037353,2]
[311191038,1704977435640,-155.59,0.00037354,2]
[311191039,1704977435650,-186.94,0.00037386,2]
[311191040,1704977435660,-155.59,0.00037453,2]
[311191041,1704977435671,-155.59,0.00037551,2]
[311191042,1704977435681,-186.94,0.00037573,2]
[311191043,1704977435691,-289.64,0.00037578,2]
[311191044,1704977435701,-1046.1504,0.00037638,2]
[311191045,1704977435711,-155.59,0.0003765,2]
[311191046,1704977435721,-152.63,0.000377,3]
[311191047,1704977435732,-152.63,0.000377,3]
[311191048,1704977435742,-152.63,0.000377,3]
[311191049,1704977435751,-152.63,0.000377,3]
[311191050,1704977435762,-152.63,0.000377,3]
[311191051,1704977435772,-152.63,0.000377,3]
[311191052,1704977435783,-155.87539404,0.00037706,2]
[311191053,1704977435793,-155.59,0.00037749,2]
[311191054,1704977435803,-186.94,0.0003776,2]
[311191055,1704977435813,-500.0,0.000378,2]
[311191056,1704977435823,-151.3,0.00037842,2]
[311191057,1704977435833,-155.59,0.00037847,2]
[311191058,1704977435845,-186.94,0.00037947,2]
[311191059,1704977435855,-167.63778095,0.00037978,7]
[311191060,1704977435865,-410.47079097,0.00037998,4]
[311191061,1704977435875,-204.99531824,0.00037999,4]
[311191062,1704977435885,-300.0,0.00038,39]
[311191063,1704977435895,-8433.22,0.00038,2]
[311191064,1704977435905,-1577.35883959,0.00038013,2]
[311191065,1704977435915,-167.97,0.00038018,2]
[311191066,1704977435925,-2225.0,0.00038077,8]
[311191067,1704977435935,-344.12890386,0.00038077,8]
[311191068,1704977435945,-178.28945112,0.00038077,8]
[311191069,1704977435955,-265.01268163,0.00038077,8]
[311191070,1704977435965,-466.72452158,0.00038077,8]
[311191071,1704977435975,-1415.69264759,0.00038077,8]
[311191072,1704977435985,-229.51715607,0.00038077,8]
[311191073,1704977435994,-511.4758578,0.00038077,8]
[311191074,1704977436004,-483.39,0.0003808,2]
[311191075,1704977436015,-153.0,0.000381,7]
[311191076,1704977436026,-153.84,0.00038119,2]
[311191077,1704977436036,-2181.7589,0.00038126,2]
[311191078,1704977436046,-186.94,0.00038134,2]
[311191079,1704977436056,-1081.3719,0.00038151,2]
[311191080,1704977436067,-1876.1382,0.00038151,2]
[311191081,1704977436078,-162.75,0.00038216,2]
[311191082,1704977436088,-2000.0,0.00038226,4]
[311191083,1704977436098,-155.87539404,0.00038229,2]
[311191084,1704977436108,-799.55014541,0.0003825,2]
[311191085,1704977436119,-190.55,0.0003826,2]
[311191086,1704977436129,-186.94,0.00038321,2]
[311191087,1704977436138,-834.0,0.00038394,2]
[311191088,1704977436149,-150.0,0.00038394,2]
[311191089,1704977436159,-351.83,0.000385,2]
[311191090,1704977436169,-186.94,0.00038508,2]
[311191091,1704977436178,-289.64,0.00038556,2]
[311191092,1704977436187,-151.44223566,0.0003857,7]
[311191093,1704977436197,-755.56619909,0.000386,2]
[311191094,1704977436206,-1837.0,0.000386,2]
[311191095,1704977436216,-186.94,0.00038695,2]
[311191096,1704977436231,-152.63,0.000387,3]
[311191097,1704977436241,-152.63,0.000387,3]
[311191098,1704977436251,-152.63,0.000387,3]
[311191099,1704977436261,-152.63,0.000387,3]
[311191100,1704977436271,-152.63,0.000387,3]
[311191101,1704977436281,-152.63,0.000387,3]
[311191102,1704977436290,-155.87539404,0.00038753,2]
[311191103,1704977436301,-151.44223566,0.00038786,7]
[311191104,1704977436312,-7073.3842,0.00038874,2]
[311191105,1704977436322,-186.94,0.00038882,2]
[311191106,1704977436332,-567.40111,0.00038948,2]
[311191107,1704977436342,-1805.63504144,0.00038973,2]
[311191108,1704977436352,-380.77500368,0.00038978,2]
[311191109,1704977436363,-1000.0,0.00038978,2]
[311191110,1704977436372,-2500.0,0.00038978,2]
[311191111,1704977436381,-281.73212903,0.0003898,2]
[311191112,1704977436391,-1427.43973993,0.00039,2]
[311191113,1704977436400,-300.0,0.00039,40]
[311191114,1704977436410,-6708.5204712,0.00039,120]
[311191115,1704977436421,-153.0,0.00039,7]
[311191116,1704977436429,-256.42,0.00039,30]
[311191117,1704977436441,-204.0,0.00039065,2]
[311191118,1704977436450,-186.94,0.00039068,2]
[311191119,1704977436459,-9535.5158,0.00039077,2]
[311191120,1704977436469,-602.7786,0.00039077,2]
[311191121,1704977436478,-775.23,0.00039077,2]
[311191122,1704977436488,-217.94702524,0.00039077,11]
[311191123,1704977436497,-1432.02870869,0.00039078,2]
[311191124,1704977436506,-6165.8921,0.00039078,2]
[311191125,1704977436516,-29446.1355,0.00039078,2]
[311191126,1704977436526,-55555.0,0.00039078,3]
[311191127,1704977436536,-160.09,0.00039127,2]
[311191128,1704977436546,-256.42,0.00039137,30]
[311191129,1704977436556,-150.31,0.00039158,2]
[311191130,1704977436565,-151.27,0.00039167,2]
[311191131,1704977436575,-94220.6414028,0.00039168,4]
[311191132,1704977436585,-1889.54351286,0.00039175,4]
[311191133,1704977436594,-724.2880672,0.00039175,4]
[311191134,1704977436604,-6898.43991637,0.00039175,4]
[311191135,1704977436614,-3761.06297707,0.00039175,4]
[311191136,1704977436623,-180.0,0.00039176,2]
[311191137,1704977436632,-313.76032228,0.00039176,4]
[311191138,1704977436642,-3060.04420173,0.00039176,4]
[311191139,1704977436651,-7006.54988453,0.00039177,4]
[311191140,1704977436661,-32897.78699578,0.00039177,4]
[311191141,1704977436672,-545.44,0.00039178,4]
[311191142,1704977436681,-500.0,0.00039178,4]
[311191143,1704977436690,-237.32,0.00039178,4]
[311191144,1704977436699,-500.0,0.00039178,4]
[311191145,1704977436708,-416.27,0.00039178,4]
[311191146,1704977436717,-500.0,0.00039178,4]
[311191147,1704977436728,-500.0,0.00039178,4]
[311191148,1704977436737,-531.44,0.00039178,4]
[311191149,1704977436747,-500.0,0.00039178,4]
[311191150,1704977436756,-500.0,0.00039178,4]
[311191151,1704977436766,-514.43152145,0.00039178,4]
[311191152,1704977436776,-500.0,0.00039178,4]
[311191153,1704977436786,-565.81,0.00039178,4]
[311191154,1704977436795,-500.0,0.00039178,4]
[311191155,1704977436805,-500.0,0.00039178,4]
[311191156,1704977436814,-500.0,0.00039178,4]
[311191157,1704977436824,-500.0,0.00039178,4]
[311191158,1704977436834,-201.99,0.00039178,4]
[311191159,1704977436844,-500.0,0.00039178,4]
[311191160,1704977436854,-500.0,0.00039178,4]
[311191161,1704977436864,-551.32,0.00039178,4]
[311191162,1704977436874,-515.36,0.00039178,4]
[311191163,1704977436884,-640.70988837,0.00039178,4]
[311191164,1704977436894,-500.0,0.00039178,4]
[311191165,1704977436904,-500.0,0.00039178,4]
[311191166,1704977436914,-500.0,0.00039178,4]
[311191167,1704977436926,-500.0,0.00039178,4]
[311191168,1704977436936,-1000.0,0.00039178,4]
[311191169,1704977436946,-500.0,0.00039178,4]
[311191170,1704977436955,-500.0,0.00039178,4]
[311191171,1704977436964,-290.64,0.00039178,4]
[311191172,1704977436974,-500.0,0.00039178,4]
[311191173,1704977436983,-500.0,0.00039178,4]
[311191174,1704977436993,-500.0,0.00039178,4]
[311191175,1704977437002,-500.0,0.00039178,4]
[311191176,1704977437011,-500.0,0.00039178,4]
[311191177,1704977437021,-500.0,0.00039178,4]
[311191178,1704977437030,-500.0,0.00039178,4]
[311191179,1704977437040,-500.0,0.00039178,4]
[311191180,1704977437050,-506.21751502,0.00039178,4]
[311191181,1704977437060,-500.0,0.00039178,4]
[311191182,1704977437070,-500.0,0.00039178,4]
[311191183,1704977437079,-500.0,0.00039178,4]
[311191184,1704977437088,-500.0,0.00039178,4]
[311191185,1704977437098,-500.0,0.00039178,4]
[311191186,1704977437108,-500.0,0.00039178,4]
[311191187,1704977437117,-500.0,0.00039178,4]
[311191188,1704977437126,-500.0,0.00039178,4]
[311191189,1704977437135,-230.34,0.00039178,4]
[311191190,1704977437145,-500.0,0.00039178,4]
[311191191,1704977437154,-500.0,0.00039178,4]
[311191192,1704977437164,-500.0,0.00039178,4]
[311191193,1704977437174,-500.0,0.00039178,4]
[311191194,1704977437183,-500.0,0.00039178,4]
[311191195,1704977437195,-500.0,0.00039178,4]
[311191196,1704977437207,-500.0,0.00039178,4]
[311191197,1704977437220,-500.0,0.00039178,4]
[311191198,1704977437236,-500.0,0.00039178,4]
[311191199,1704977437248,-500.0,0.00039178,4]
[311191200,1704977437260,-500.0,0.00039178,4]
[311191201,1704977437271,-500.0,0.00039178,4]
[311191202,1704977437282,-500.0,0.00039178,4]
[311191203,1704977437293,-500.0,0.00039178,4]
[311191204,1704977437303,-500.0,0.00039178,4]
[311191205,1704977437315,-500.0,0.00039178,4]
[311191206,1704977437326,-500.0,0.00039178,4]
[311191207,1704977437338,-469.76,0.00039178,4]
[311191208,1704977437350,-500.0,0.00039178,4]
[311191209,1704977437362,-500.0,0.00039178,4]
[311191210,1704977437374,-500.0,0.00039178,4]
[311191211,1704977437387,-500.0,0.00039178,4]
[311191212,1704977437399,-253.24,0.00039178,4]
[311191213,1704977437411,-500.0,0.00039178,4]
[311191214,1704977437427,-500.0,0.00039178,4]
[311191215,1704977437439,-500.0,0.00039178,4]
[311191216,1704977437449,-500.0,0.00039178,4]
[311191217,1704977437461,-1087.3,0.00039178,4]
[311191218,1704977437474,-1087.3,0.00039178,4]
[311191219,1704977437487,-500.0,0.00039178,4]
[311191220,1704977437498,-592.47503441,0.00039178,4]
[311191221,1704977437510,-500.0,0.00039178,4]
[311191222,1704977437522,-500.0,0.00039178,4]
[311191223,1704977437533,-207.04,0.00039178,4]
[311191224,1704977437546,-509.70833205,0.00039178,4]
[311191225,1704977437557,-500.0,0.00039178,4]
[311191226,1704977437572,-500.0,0.00039178,4]
[311191227,1704977437585,-500.0,0.00039178,4]
[311191228,1704977437598,-501.16,0.00039178,4]
[311191229,1704977437609,-500.0,0.00039178,4]
[311191230,1704977437620,-500.0,0.00039178,4]
[311191231,1704977437631,-500.0,0.00039178,4]
[311191232,1704977437646,-500.0,0.00039178,4]
[311191233,1704977437660,-500.0,0.00039178,4]
[311191234,1704977437674,-500.0,0.00039178,4]
[311191235,1704977437687,-500.0,0.00039178,4]
[311191236,1704977437701,-500.0,0.00039178,4]
[311191237,1704977437713,-500.0,0.00039178,4]
[311191238,1704977437726,-500.0,0.00039178,4]
[311191239,1704977437738,-500.0,0.00039178,4]
[311191240,1704977437750,-500.0,0.00039178,4]
[311191241,1704977437762,-500.0,0.00039178,4]
[311191242,1704977437774,-500.0,0.00039178,4]
[311191243,1704977437785,-1000.0,0.00039178,2]
[311191244,1704977437797,-500.0,0.00039178,4]
[311191245,1704977437809,-500.0,0.00039178,4]
[311191246,1704977437821,-500.0,0.00039178,4]
[311191247,1704977437833,-500.0,0.00039178,4]
[311191248,1704977437846,-500.0,0.00039178,4]
[311191249,1704977437858,-500.0,0.00039178,4]
[311191250,1704977437869,-500.0,0.00039178,4]
[311191251,1704977437882,-500.0,0.00039178,4]
[311191252,1704977437892,-500.0,0.00039178,4]
[311191253,1704977437903,-500.0,0.00039178,4]
[311191254,1704977437915,-500.0,0.00039178,4]
[311191255,1704977437926,-500.0,0.00039178,4]
[311191256,1704977437936,-500.0,0.00039178,4]
[311191257,1704977437946,-405.62,0.00039178,4]
[311191258,1704977437958,-500.0,0.00039178,4]
[311191259,1704977437968,-621.09443106,0.00039178,4]
[311191260,1704977437980,-508.47335401,0.00039178,4]
[311191261,1704977437990,-500.0,0.00039178,4]
[311191262,1704977438002,-500.0,0.00039178,4]
[311191263,1704977438012,-500.0,0.00039178,4]
[311191264,1704977438024,-500.0,0.00039178,4]
[311191265,1704977438035,-500.0,0.00039178,4]
[311191266,1704977438045,-500.0,0.00039178,4]
[311191267,1704977438056,-500.0,0.00039178,4]
[311191268,1704977438066,-356.20214112,0.00039178,4]
[311191269,1704977438076,-500.0,0.00039178,4]
[311191270,1704977438086,-500.0,0.00039178,4]
[311191271,1704977438096,-500.0,0.00039178,4]
[311191272,1704977438106,-168.56446769,0.00039178,4]
[311191273,1704977438117,-500.0,0.00039178,4]
[311191274,1704977438127,-500.0,0.00039178,4]
[311191276,1704977438138,-500.0,0.00039178,4]
[311191278,1704977438148,-500.0,0.00039178,4]
[311191279,1704977438158,-502.4163725,0.00039178,4]
[311191280,1704977438168,-500.0,0.00039178,4]
[311191281,1704977438179,-500.0,0.00039178,4]
[311191282,1704977438189,-500.0,0.00039178,4]
[311191284,1704977438199,-500.0,0.00039178,4]
[311191285,1704977438209,-500.0,0.00039178,4]
[311191286,1704977438219,-500.0,0.00039178,4]
[311191287,1704977438235,-500.0,0.00039178,4]
[311191288,1704977438245,-500.0,0.00039178,4]
[311191289,1704977438255,-500.0,0.00039178,4]
[311191290,1704977438266,-500.0,0.00039178,4]
[311191291,1704977438276,-500.0,0.00039178,4]
[311191292,1704977438286,-500.0,0.00039178,4]
[311191293,1704977438297,-500.0,0.00039178,4]
[311191294,1704977438309,-507.65158137,0.00039178,4]
[311191295,1704977438320,-500.0,0.00039178,4]
[311191296,1704977438331,-500.0,0.00039178,4]
[311191297,1704977438341,-519.78695223,0.00039178,4]
[311191298,1704977438351,-500.0,0.00039178,4]
[311191299,1704977438362,-500.0,0.00039178,4]
[311191300,1704977438372,-500.0,0.00039178,4]
[311191301,1704977438382,-500.0,0.00039178,4]
[311191302,1704977438393,-500.0,0.00039178,4]
[311191303,1704977438403,-500.0,0.00039178,4]
[311191304,1704977438413,-500.0,0.00039178,4]
[311191305,1704977438425,-389.69411125,0.00039178,4]
[311191306,1704977438435,-500.0,0.00039178,4]
[311191307,1704977438445,-500.0,0.00039178,4]
[311191308,1704977438455,-484.5338117,0.00039178,4]
[311191309,1704977438465,-500.0,0.00039178,4]
[311191310,1704977438475,-500.0,0.00039178,4]
[311191311,1704977438485,-500.0,0.00039178,4]
[311191312,1704977438495,-500.0,0.00039178,4]
[311191313,1704977438506,-500.0,0.00039178,4]
[311191314,1704977438516,-500.0,0.00039178,4]
[311191315,1704977438526,-500.0,0.00039178,4]
[311191316,1704977438537,-500.0,0.00039178,4]
[311191317,1704977438548,-500.0,0.00039178,4]
[311191318,1704977438558,-500.0,0.00039178,4]
[311191319,1704977438568,-502.26,0.00039178,4]
[311191320,1704977438579,-500.0,0.00039178,4]
[311191321,1704977438590,-500.0,0.00039178,4]
[311191322,1704977438600,-500.0,0.00039178,4]
[311191323,1704977438610,-500.0,0.00039178,4]
[311191324,1704977438621,-500.0,0.00039178,4]
[311191325,1704977438631,-500.0,0.00039178,4]
[311191326,1704977438641,-500.0,0.00039178,4]
[311191327,1704977438652,-307.23,0.00039178,4]
[311191328,1704977438662,-500.0,0.00039178,4]
[311191329,1704977438675,-500.0,0.00039178,4]
[311191330,1704977438685,-500.0,0.00039178,4]
[311191331,1704977438695,-535.22490128,0.00039178,4]
[311191332,1704977438706,-500.0,0.00039178,4]
[311191333,1704977438716,-411.34787368,0.00039178,10]
[311191334,1704977438727,-500.0,0.00039178,4]
[311191335,1704977438737,-500.0,0.00039178,4]
[311191336,1704977438748,-500.0,0.00039178,4]
[311191337,1704977438759,-500.0,0.00039178,4]
[311191338,1704977438769,-500.0,0.00039178,4]
[311191339,1704977438780,-500.0,0.00039178,4]
[311191340,1704977438791,-500.0,0.00039178,4]
[311191341,1704977438801,-500.0,0.00039178,4]
[311191342,1704977438811,-500.0,0.00039178,4]
[311191343,1704977438822,-500.0,0.00039178,4]
[311191344,1704977438833,-500.0,0.00039178,4]
[311191345,1704977438861,-500.0,0.00039178,4]
[311191346,1704977438871,-500.0,0.00039178,4]
[311191347,1704977438883,-500.0,0.00039178,4]
[311191348,1704977438908,-500.0,0.00039178,4]
[311191349,1704977438919,-316.68,0.00039178,4]
[311191350,1704977438929,-398.14,0.00039178,4]
[311191351,1704977438940,-500.0,0.00039178,4]